fUSD/lending_fUSD_20260614
["ID","MTS","AMOUNT","RATE_DAILY","PERIOD"]
[425005499,1781409045000,-255.93607242,0.00025,2]
[425005496,1781409045000,-225.30054521,0.00025,2]
[425005494,1781409045000,-1125.81969986,0.00025,30]
[425005495,1781409045000,-396.01337303,0.00025,2]
[425005493,1781409045000,-506.0,0.00018,2]
[425005501,1781409045000,-281.30220777,0.00025,2]
[425005508,1781409045000,-1235.18214925,0.00025043,2]
[425005513,1781409045000,-1481.2378076,0.00025043,2]
[425005512,1781409045000,-1428.38747117,0.00025043,2]
[425005509,1781409045000,-1280.88388877,0.00025043,2]
[425005529,1781409045000,-500.0,0.00025043,2]
[425005527,1781409045000,-500.0,0.00025043,2]
[425005525,1781409045000,-1820.43204363,0.00025043,2]
[425005528,1781409045000,-152.0,0.00025043,2]
[425005524,1781409045000,-1980.8648231,0.00025043,2]
[425005519,1781409045000,-1776.30922209,0.00025043,2]
[425005521,1781409045000,-1910.18787185,0.00025043,2]
[425005526,1781409045000,-151.0,0.00025043,2]
[425005523,1781409045000,-500.0,0.00025043,2]
[425005518,1781409045000,-1712.93078311,0.00025043,2]
[425005520,1781409045000,-1842.0326633,0.00025043,2]
[425005514,1781409045000,-1536.04360648,0.00025043,2]
[425005517,1781409045000,-1651.81367706,0.00025043,2]
[425005515,1781409045000,-151.0,0.00025043,2]
[425005522,1781409045000,-500.0,0.00025043,2]
[425005516,1781409045000,-1592.87721992,0.00025043,2]
[425005569,1781409046000,-151.0,0.00025593,2]
[425005566,1781409046000,-151.0,0.00025483,2]
[425005567,1781409046000,-151.0,0.00025538,2]
[425005562,1781409046000,-2229.0,0.00025332,2]
[425005561,1781409046000,-2225.0,0.00025332,2]
[425005565,1781409046000,-151.0,0.00025428,2]
[425005563,1781409046000,-150.0,0.00025373,2]
[425005559,1781409046000,-7726.78008467,0.00025296,2]
[425005560,1781409046000,-151.0,0.00025318,2]
[425005572,1781409046000,-2236.95670847,0.00025621,2]
[425005564,1781409046000,-151.0,0.00025373,2]
[425005571,1781409046000,-200.0,0.00025621,2]
[425005578,1781409046000,-781.97,0.00025786,2]
[425005568,1781409046000,-160.54280203,0.00025591,2]
[425005574,1781409046000,-150.0,0.00025754,2]
[425005573,1781409046000,-176.0,0.00025671,2]
[425005576,1781409046000,-477.32,0.00025786,2]
[425005575,1781409046000,-1278.58,0.00025786,2]
[425005577,1781409046000,-3138.51,0.00025786,2]
[425005557,1781409046000,-151.0,0.00025263,2]
[425005581,1781409046000,-162.65613694,0.00026027,2]
[425005579,1781409046000,-12578.51,0.00025786,2]
[425005580,1781409046000,-412.06071337,0.00025865,2]
[425005582,1781409046000,-491.0,0.00026056,2]
[425005584,1781409046000,-160.54280203,0.00026139,2]
[425005570,1781409046000,-151.0,0.00025621,2]
[425005556,1781409046000,-151.0,0.00025208,2]
[425005549,1781409046000,-151.0,0.00025073,2]
[425005555,1781409046000,-151.0,0.00025153,2]
[425005585,1781409046000,-183.77,0.00026156,120]
[425005530,1781409046000,-152.0,0.00025043,2]
[425005531,1781409046000,-500.0,0.00025043,2]
[425005533,1781409046000,-500.0,0.00025043,2]
[425005532,1781409046000,-152.0,0.00025043,2]
[425005535,1781409046000,-500.0,0.00025043,2]
[425005534,1781409046000,-152.0,0.00025043,2]
[425005536,1781409046000,-152.0,0.00025043,2]
[425005537,1781409046000,-500.0,0.00025043,2]
[425005538,1781409046000,-152.0,0.00025043,2]
[425005540,1781409046000,-152.0,0.00025043,2]
[425005541,1781409046000,-500.0,0.00025043,2]
[425005542,1781409046000,-152.0,0.00025043,2]
[425005543,1781409046000,-500.0,0.00025043,2]
[425005539,1781409046000,-500.0,0.00025043,2]
[425005547,1781409046000,-2254.0,0.00025052,2]
[425005546,1781409046000,-152.0,0.00025043,2]
[425005544,1781409046000,-152.0,0.00025043,2]
[425005545,1781409046000,-152.0,0.00025043,2]
[425005548,1781409046000,-2230.0,0.00025052,2]
[425005550,1781409046000,-200.0,0.00025073,2]
[425005552,1781409046000,-151.0,0.00025098,2]
[425005554,1781409046000,-255.31250881,0.000251,2]
[425005553,1781409046000,-751.27178651,0.000251,2]
[425005551,1781409046000,-2157.14243826,0.00025073,2]
[425005558,1781409046000,-151.56,0.00025277,2]
[425005583,1781409046000,-500.0,0.00026056,2]
[425005586,1781409046000,-155.06587243,0.00026169,2]
[425005589,1781409046000,-175.892774,0.00026222,14]
[425005615,1781409046000,-3557.0,0.00026963,2]
[425005620,1781409046000,-419.0,0.00026963,2]
[425005623,1781409046000,-938.4522303,0.00026971,2]
[425005619,1781409046000,-3644.0,0.00026963,2]
[425005622,1781409046000,-9586.8583675,0.00026971,2]
[425005621,1781409046000,-2835.6789748,0.00026971,2]
[425005625,1781409046000,-170.02,0.00026972,2]
[425005626,1781409046000,-2425.50634855,0.00026984,2]
[425005624,1781409046000,-683.64,0.00026972,2]
[425005627,1781409046000,-500.0,0.00026999,2]
[425005628,1781409046000,-500.0,0.00026999,2]
[425005629,1781409046000,-500.0,0.00026999,2]
[425005618,1781409046000,-6077.0,0.00026963,2]
[425005630,1781409046000,-500.0,0.00026999,2]
[425005632,1781409046000,-8064.0,0.00027,2]
[425005634,1781409046000,-151.0,0.00027,2]
[425005633,1781409046000,-86414.0,0.00027,2]
[425005636,1781409046000,-164.34,0.00027,30]
[425005637,1781409046000,-644.0,0.00027015,10]
[425005635,1781409046000,-151.0,0.00027,2]
[425005638,1781409046000,-500.0,0.0002707,2]
[425005639,1781409046000,-151.0,0.00027094,7]
[425005640,1781409046000,-300.0,0.00027096,10]
[425005641,1781409046000,-500.0,0.00027096,2]
[425005642,1781409046000,-1532.24,0.00027096,2]
[425005643,1781409046000,-1532.24,0.00027096,2]
[425005631,1781409046000,-199480.0,0.00027,2]
[425005617,1781409046000,-1275.0,0.00026963,2]
[425005587,1781409046000,-200.0,0.00026169,2]
[425005614,1781409046000,-1360.559,0.00026963,2]
[425005616,1781409046000,-1228.417,0.00026963,2]
[425005590,1781409046000,-175.892775,0.00026222,14]
[425005644,1781409046000,-454.46771788,0.00027096,2]
[425005593,1781409046000,-284.52,0.0002636,2]
[425005594,1781409046000,-500.0,0.00026367,2]
[425005588,1781409046000,-2319.72410669,0.00026169,2]
[425005592,1781409046000,-5018.12,0.000263,7]
[425005591,1781409046000,-334.5,0.00026296,2]
[425005597,1781409046000,-1433.696,0.00026553,13]
[425005596,1781409046000,-232.31,0.00026454,120]
[425005599,1781409046000,-162.65613694,0.00026575,2]
[425005598,1781409046000,-195.849,0.00026553,13]
[425005600,1781409046000,-150.0,0.00026641,2]
[425005595,1781409046000,-637.53,0.00026378,2]
[425005606,1781409046000,-2425.50634858,0.00026738,2]
[425005601,1781409046000,-8219.8109,0.00026657,2]
[425005612,1781409046000,-2330.92112929,0.00026871,2]
[425005610,1781409046000,-356.18807184,0.00026849,2]
[425005608,1781409046000,-2887.99492614,0.0002683,2]
[425005611,1781409046000,-2425.50634855,0.00026861,2]
[425005609,1781409046000,-500.0,0.00026838,2]
[425005605,1781409046000,-2153.14039522,0.00026717,2]
[425005613,1781409046000,-2000.0,0.000269,2]
[425005604,1781409046000,-336.41476893,0.00026717,2]
[425005603,1781409046000,-160.54280203,0.00026687,2]
[425005602,1781409046000,-2500.0,0.00026657,2]
[425005607,1781409046000,-500.0,0.00026756,2]
[425005684,1781409047000,-250000.0,0.0002739,2]
[425005690,1781409047000,-1056.89,0.00027396,2]
[425005685,1781409047000,-151.0,0.0002739,2]
[425005683,1781409047000,-450.997512,0.00027389,2]
[425005675,1781409047000,-500.0,0.00027389,2]
[425005681,1781409047000,-3000.0,0.00027389,3]
[425005679,1781409047000,-1577.48,0.00027389,2]
[425005680,1781409047000,-1532.24,0.00027389,2]
[425005677,1781409047000,-500.0,0.00027389,2]
[425005687,1781409047000,-420.97324374,0.00027396,10]
[425005682,1781409047000,-500.0,0.00027389,2]
[425005686,1781409047000,-176.194319,0.0002739,2]
[425005699,1781409047000,-699.05,0.00027396,2]
[425005688,1781409047000,-1187.69893015,0.00027396,2]
[425005689,1781409047000,-1187.69893014,0.00027396,2]
[425005692,1781409047000,-1056.89,0.00027396,2]
[425005693,1781409047000,-1056.89,0.00027396,2]
[425005694,1781409047000,-1056.89,0.00027396,2]
[425005695,1781409047000,-1056.89,0.00027396,2]
[425005696,1781409047000,-500.0,0.00027396,2]
[425005698,1781409047000,-270.12,0.00027396,2]
[425005701,1781409047000,-699.05,0.00027396,2]
[425005702,1781409047000,-699.05,0.00027396,2]
[425005704,1781409047000,-500.0,0.00027396,2]
[425005697,1781409047000,-500.0,0.00027396,2]
[425005676,1781409047000,-699.05,0.00027389,2]
[425005691,1781409047000,-1056.89,0.00027396,2]
[425005678,1781409047000,-1577.48,0.00027389,2]
[425005662,1781409047000,-1577.48,0.00027296,2]
[425005673,1781409047000,-300.0,0.00027389,10]
[425005645,1781409047000,-1077.77228212,0.00027096,2]
[425005705,1781409047000,-500.0,0.00027396,2]
[425005649,1781409047000,-200.0,0.00027097,2]
[425005648,1781409047000,-200.0,0.00027097,2]
[425005646,1781409047000,-200.0,0.00027097,2]
[425005652,1781409047000,-298.08,0.00027123,2]
[425005650,1781409047000,-2425.50634855,0.00027107,2]
[425005651,1781409047000,-200.0,0.00027123,2]
[425005654,1781409047000,-2330.92112926,0.00027167,2]
[425005653,1781409047000,-151.29953402,0.00027124,2]
[425005656,1781409047000,-2425.50634855,0.0002723,2]
[425005655,1781409047000,-155.1844696,0.00027194,7]
[425005657,1781409047000,-160.54280203,0.00027235,2]
[425005658,1781409047000,-200.0,0.00027268,2]
[425005660,1781409047000,-699.05,0.00027296,2]
[425005659,1781409047000,-506.0,0.00027288,5]
[425005661,1781409047000,-699.05,0.00027296,2]
[425005663,1781409047000,-1577.48,0.00027296,2]
[425005665,1781409047000,-594.97842321,0.00027297,2]
[425005664,1781409047000,-734.09425913,0.00027297,2]
[425005667,1781409047000,-200.0,0.00027368,2]
[425005670,1781409047000,-235.0,0.00027383,2]
[425005669,1781409047000,-200.0,0.00027368,2]
[425005666,1781409047000,-2425.50634855,0.00027353,2]
[425005668,1781409047000,-200.0,0.00027368,2]
[425005672,1781409047000,-500.0,0.00027388,2]
[425005671,1781409047000,-173.49935523,0.00027387,2]
[425005674,1781409047000,-1056.89,0.00027389,2]
[425005703,1781409047000,-699.05,0.00027396,2]
[425005647,1781409047000,-200.0,0.00027097,2]
[425005707,1781409047000,-500.0,0.00027396,2]
[425005739,1781409047000,-500.0,0.00027397,2]
[425005736,1781409047000,-500.0,0.00027397,2]
[425005738,1781409047000,-500.0,0.00027397,2]
[425005741,1781409047000,-500.0,0.00027397,2]
[425005743,1781409047000,-329.40961386,0.00027397,2]
[425005742,1781409047000,-170.59038614,0.00027397,2]
[425005745,1781409047000,-500.0,0.00027397,2]
[425005748,1781409047000,-241.68477264,0.00027397,2]
[425005746,1781409047000,-500.0,0.00027397,2]
[425005744,1781409047000,-500.0,0.00027397,2]
[425005747,1781409047000,-500.0,0.00027397,2]
[425005749,1781409047000,-500.0,0.00027397,2]
[425005751,1781409047000,-500.0,0.00027397,2]
[425005750,1781409047000,-500.0,0.00027397,2]
[425005753,1781409047000,-500.0,0.00027397,2]
[425005752,1781409047000,-500.0,0.00027397,2]
[425005755,1781409047000,-456.85155508,0.00027397,2]
[425005754,1781409047000,-500.0,0.00027397,2]
[425005757,1781409047000,-500.0,0.00027397,2]
[425005756,1781409047000,-500.0,0.00027397,2]
[425005762,1781409047000,-500.0,0.00027397,2]
[425005758,1781409047000,-500.0,0.00027397,2]
[425005760,1781409047000,-500.0,0.00027397,2]
[425005761,1781409047000,-500.0,0.00027397,2]
[425005759,1781409047000,-500.0,0.00027397,2]
[425005763,1781409047000,-500.0,0.00027397,2]
[425005700,1781409047000,-699.05,0.00027396,2]
[425005740,1781409047000,-500.0,0.00027397,2]
[425005734,1781409047000,-500.0,0.00027397,2]
[425005764,1781409047000,-500.0,0.00027397,2]
[425005735,1781409047000,-500.0,0.00027397,2]
[425005706,1781409047000,-500.0,0.00027396,2]
[425005709,1781409047000,-1577.48,0.00027396,2]
[425005710,1781409047000,-1577.48,0.00027396,2]
[425005708,1781409047000,-427.187189,0.00027396,2]
[425005712,1781409047000,-1577.48,0.00027396,2]
[425005716,1781409047000,-1532.24,0.00027396,2]
[425005715,1781409047000,-1532.24,0.00027396,2]
[425005737,1781409047000,-500.0,0.00027397,2]
[425005711,1781409047000,-1577.48,0.00027396,2]
[425005713,1781409047000,-1577.48,0.00027396,2]
[425005717,1781409047000,-1532.24,0.00027396,2]
[425005719,1781409047000,-1532.24,0.00027396,2]
[425005720,1781409047000,-1532.24,0.00027396,2]
[425005714,1781409047000,-300.0,0.00027396,10]
[425005721,1781409047000,-150.0,0.00027396,20]
[425005718,1781409047000,-1532.24,0.00027396,2]
[425005730,1781409047000,-345.26596587,0.00027397,2]
[425005732,1781409047000,-500.0,0.00027397,2]
[425005731,1781409047000,-151.41782246,0.00027397,2]
[425005727,1781409047000,-384.38458943,0.00027396,2]
[425005728,1781409047000,-150.0,0.00027396,2]
[425005733,1781409047000,-500.0,0.00027397,2]
[425005726,1781409047000,-500.0,0.00027396,2]
[425005724,1781409047000,-500.0,0.00027396,2]
[425005725,1781409047000,-500.0,0.00027396,2]
[425005723,1781409047000,-500.0,0.00027396,2]
[425005722,1781409047000,-500.0,0.00027396,2]
[425005729,1781409047000,-499.0,0.00027397,5]
[425005807,1781409048000,-500.0,0.00027397,2]
[425005803,1781409048000,-500.0,0.00027397,2]
[425005805,1781409048000,-1262.38,0.00027397,2]
[425005804,1781409048000,-500.0,0.00027397,2]
[425005800,1781409048000,-500.0,0.00027397,2]
[425005799,1781409048000,-505.37,0.00027397,2]
[425005802,1781409048000,-750.66,0.00027397,2]
[425005798,1781409048000,-500.0,0.00027397,2]
[425005795,1781409048000,-580.36187177,0.00027397,2]
[425005796,1781409048000,-500.0,0.00027397,2]
[425005801,1781409048000,-500.0,0.00027397,2]
[425005806,1781409048000,-500.0,0.00027397,2]
[425005821,1781409048000,-2059.69,0.00027397,2]
[425005808,1781409048000,-500.0,0.00027397,2]
[425005810,1781409048000,-500.0,0.00027397,2]
[425005811,1781409048000,-500.0,0.00027397,2]
[425005812,1781409048000,-521.95,0.00027397,2]
[425005814,1781409048000,-972.73,0.00027397,2]
[425005820,1781409048000,-500.0,0.00027397,2]
[425005818,1781409048000,-1000.0,0.00027397,2]
[425005817,1781409048000,-500.0,0.00027397,2]
[425005815,1781409048000,-500.0,0.00027397,2]
[425005813,1781409048000,-500.0,0.00027397,2]
[425005816,1781409048000,-500.0,0.00027397,2]
[425005819,1781409048000,-2605.51,0.00027397,2]
[425005797,1781409048000,-500.0,0.00027397,2]
[425005809,1781409048000,-1180.19,0.00027397,2]
[425005792,1781409048000,-500.0,0.00027397,15]
[425005780,1781409048000,-947.27,0.00027397,2]
[425005793,1781409048000,-500.0,0.00027397,2]
[425005767,1781409048000,-860.14,0.00027397,2]
[425005766,1781409048000,-500.0,0.00027397,2]
[425005765,1781409048000,-500.0,0.00027397,2]
[425005768,1781409048000,-500.0,0.00027397,2]
[425005769,1781409048000,-1797.2,0.00027397,2]
[425005771,1781409048000,-808.09,0.00027397,2]
[425005772,1781409048000,-500.0,0.00027397,2]
[425005770,1781409048000,-500.0,0.00027397,2]
[425005774,1781409048000,-500.0,0.00027397,2]
[425005773,1781409048000,-500.0,0.00027397,2]
[425005775,1781409048000,-500.0,0.00027397,2]
[425005779,1781409048000,-500.0,0.00027397,2]
[425005794,1781409048000,-500.0,0.00027397,2]
[425005778,1781409048000,-500.0,0.00027397,2]
[425005777,1781409048000,-500.0,0.00027397,2]
[425005782,1781409048000,-500.0,0.00027397,2]
[425005784,1781409048000,-500.0,0.00027397,2]
[425005781,1781409048000,-500.0,0.00027397,2]
[425005783,1781409048000,-1139.06,0.00027397,2]
[425005786,1781409048000,-500.0,0.00027397,2]
[425005787,1781409048000,-500.0,0.00027397,2]
[425005785,1781409048000,-500.0,0.00027397,2]
[425005788,1781409048000,-2266.75,0.00027397,2]
[425005791,1781409048000,-500.0,0.00027397,2]
[425005790,1781409048000,-1124.04,0.00027397,2]
[425005789,1781409048000,-500.0,0.00027397,2]
[425005776,1781409048000,-753.04,0.00027397,2]
[425005823,1781409048000,-500.0,0.00027397,2]
[425005824,1781409048000,-1474.41,0.00027397,2]
[425005828,1781409048000,-500.0,0.00027397,2]
[425005856,1781409048000,-500.0,0.00027397,2]
[425005855,1781409048000,-500.0,0.00027397,2]
[425005859,1781409048000,-500.0,0.00027397,2]
[425005858,1781409048000,-500.0,0.00027397,2]
[425005860,1781409048000,-500.0,0.00027397,2]
[425005861,1781409048000,-500.0,0.00027397,2]
[425005869,1781409048000,-996.27,0.00027397,2]
[425005862,1781409048000,-494.05454023,0.00027397,2]
[425005863,1781409048000,-500.0,0.00027397,2]
[425005864,1781409048000,-500.0,0.00027397,2]
[425005865,1781409048000,-1685.88,0.00027397,2]
[425005866,1781409048000,-500.0,0.00027397,2]
[425005852,1781409048000,-500.0,0.00027397,2]
[425005867,1781409048000,-500.0,0.00027397,2]
[425005871,1781409048000,-500.0,0.00027397,2]
[425005870,1781409048000,-500.0,0.00027397,2]
[425005872,1781409048000,-500.0,0.00027397,2]
[425005874,1781409048000,-573.6145115,0.00027397,2]
[425005877,1781409048000,-500.0,0.00027397,2]
[425005876,1781409048000,-500.0,0.00027397,2]
[425005875,1781409048000,-500.0,0.00027397,2]
[425005879,1781409048000,-500.0,0.00027397,2]
[425005878,1781409048000,-500.0,0.00027397,2]
[425005873,1781409048000,-1243.82,0.00027397,2]
[425005880,1781409048000,-1743.98,0.00027397,2]
[425005822,1781409048000,-831.43,0.00027397,2]
[425005868,1781409048000,-2449.24,0.00027397,2]
[425005857,1781409048000,-500.0,0.00027397,2]
[425005881,1781409048000,-500.0,0.00027397,2]
[425005853,1781409048000,-500.0,0.00027397,2]
[425005827,1781409048000,-500.0,0.00027397,2]
[425005830,1781409048000,-506.72,0.00027397,2]
[425005826,1781409048000,-500.0,0.00027397,2]
[425005825,1781409048000,-500.0,0.00027397,2]
[425005829,1781409048000,-500.0,0.00027397,2]
[425005831,1781409048000,-500.0,0.00027397,2]
[425005832,1781409048000,-844.55,0.00027397,2]
[425005854,1781409048000,-500.0,0.00027397,2]
[425005835,1781409048000,-500.0,0.00027397,2]
[425005836,1781409048000,-2242.95,0.00027397,2]
[425005834,1781409048000,-1636.81,0.00027397,2]
[425005838,1781409048000,-500.0,0.00027397,2]
[425005837,1781409048000,-507.59,0.00027397,2]
[425005833,1781409048000,-733.11,0.00027397,2]
[425005845,1781409048000,-500.0,0.00027397,2]
[425005843,1781409048000,-567.65873717,0.00027397,2]
[425005851,1781409048000,-500.0,0.00027397,2]
[425005850,1781409048000,-500.0,0.00027397,2]
[425005847,1781409048000,-2048.74,0.00027397,2]
[425005848,1781409048000,-500.0,0.00027397,2]
[425005849,1781409048000,-582.59582169,0.00027397,2]
[425005839,1781409048000,-500.0,0.00027397,2]
[425005844,1781409048000,-1928.45,0.00027397,2]
[425005840,1781409048000,-962.4,0.00027397,2]
[425005842,1781409048000,-1841.74,0.00027397,2]
[425005841,1781409048000,-2478.49,0.00027397,2]
[425005846,1781409048000,-928.66,0.00027397,2]
[425005917,1781409049000,-800.84,0.00027397,2]
[425005924,1781409049000,-1755.67,0.00027397,2]
[425005923,1781409049000,-439.44811234,0.00027397,2]
[425005921,1781409049000,-527.82482613,0.00027397,2]
[425005918,1781409049000,-560.94,0.00027397,2]
[425005912,1781409049000,-500.0,0.00027397,2]
[425005913,1781409049000,-500.0,0.00027397,2]
[425005910,1781409049000,-231.15084864,0.00027397,2]
[425005909,1781409049000,-500.0,0.00027397,2]
[425005911,1781409049000,-1977.14,0.00027397,2]
[425005916,1781409049000,-500.0,0.00027397,2]
[425005925,1781409049000,-546.28,0.00027397,2]
[425005934,1781409049000,-500.0,0.00027397,2]
[425005926,1781409049000,-500.0,0.00027397,2]
[425005922,1781409049000,-500.0,0.00027397,2]
[425005919,1781409049000,-628.11,0.00027397,2]
[425005927,1781409049000,-1003.18,0.00027397,2]
[425005929,1781409049000,-848.07,0.00027397,2]
[425005928,1781409049000,-813.09,0.00027397,2]
[425005931,1781409049000,-500.0,0.00027397,2]
[425005933,1781409049000,-500.0,0.00027397,2]
[425005935,1781409049000,-500.0,0.00027397,2]
[425005932,1781409049000,-500.0,0.00027397,2]
[425005930,1781409049000,-846.67,0.00027397,2]
[425005915,1781409049000,-500.0,0.00027397,2]
[425005920,1781409049000,-500.0,0.00027397,2]
[425005908,1781409049000,-500.0,0.00027397,2]
[425005900,1781409049000,-500.0,0.00027397,2]
[425005907,1781409049000,-500.0,0.00027397,2]
[425005883,1781409049000,-500.0,0.00027397,2]
[425005882,1781409049000,-500.0,0.00027397,2]
[425005884,1781409049000,-500.0,0.00027397,2]
[425005887,1781409049000,-925.3,0.00027397,2]
[425005892,1781409049000,-747.59,0.00027397,2]
[425005885,1781409049000,-500.0,0.00027397,2]
[425005889,1781409049000,-500.0,0.00027397,2]
[425005886,1781409049000,-1571.79,0.00027397,2]
[425005888,1781409049000,-1382.86,0.00027397,2]
[425005890,1781409049000,-500.0,0.00027397,2]
[425005891,1781409049000,-500.0,0.00027397,2]
[425005893,1781409049000,-670.7,0.00027397,2]
[425005894,1781409049000,-625.85,0.00027397,2]
[425005895,1781409049000,-500.0,0.00027397,2]
[425005899,1781409049000,-500.0,0.00027397,2]
[425005897,1781409049000,-1280.32,0.00027397,2]
[425005936,1781409049000,-500.0,0.00027397,2]
[425005903,1781409049000,-500.0,0.00027397,2]
[425005901,1781409049000,-500.0,0.00027397,2]
[425005902,1781409049000,-500.0,0.00027397,2]
[425005898,1781409049000,-880.5,0.00027397,2]
[425005896,1781409049000,-500.0,0.00027397,2]
[425005906,1781409049000,-500.0,0.00027397,2]
[425005904,1781409049000,-500.0,0.00027397,2]
[425005905,1781409049000,-500.0,0.00027397,2]
[425005914,1781409049000,-500.0,0.00027397,2]
[425005937,1781409049000,-500.0,0.00027397,2]
[425005976,1781409049000,-1553.06,0.00027397,2]
[425005938,1781409049000,-500.0,0.00027397,2]
[425005968,1781409049000,-500.0,0.00027397,2]
[425005971,1781409049000,-500.0,0.00027397,2]
[425005969,1781409049000,-500.0,0.00027397,2]
[425005972,1781409049000,-935.91,0.00027397,2]
[425005974,1781409049000,-500.0,0.00027397,2]
[425005975,1781409049000,-500.0,0.00027397,2]
[425005973,1781409049000,-500.0,0.00027397,2]
[425005979,1781409049000,-500.0,0.00027397,2]
[425005977,1781409049000,-500.0,0.00027397,2]
[425005978,1781409049000,-500.0,0.00027397,2]
[425005981,1781409049000,-500.0,0.00027397,2]
[425005984,1781409049000,-500.0,0.00027397,2]
[425005982,1781409049000,-500.0,0.00027397,2]
[425005983,1781409049000,-897.18,0.00027397,2]
[425005985,1781409049000,-500.0,0.00027397,2]
[425005986,1781409049000,-500.0,0.00027397,2]
[425005987,1781409049000,-500.0,0.00027397,2]
[425005988,1781409049000,-709.01,0.00027397,2]
[425005992,1781409049000,-641.38,0.00027397,2]
[425005994,1781409049000,-1406.79,0.00027397,2]
[425005989,1781409049000,-500.0,0.00027397,2]
[425005993,1781409049000,-500.0,0.00027397,2]
[425005990,1781409049000,-864.26185296,0.00027397,2]
[425005991,1781409049000,-841.35,0.00027397,2]
[425005940,1781409049000,-500.0,0.00027397,2]
[425005965,1781409049000,-959.18,0.00027397,2]
[425005967,1781409049000,-500.0,0.00027397,2]
[425005980,1781409049000,-500.0,0.00027397,2]
[425005966,1781409049000,-850.83,0.00027397,2]
[425005970,1781409049000,-560.07937406,0.00027397,2]
[425005941,1781409049000,-497.87427008,0.00027397,2]
[425005942,1781409049000,-592.62147923,0.00027397,2]
[425005944,1781409049000,-203.54629989,0.00027397,2]
[425005943,1781409049000,-500.0,0.00027397,2]
[425005945,1781409049000,-630.20293863,0.00027397,2]
[425005949,1781409049000,-500.0,0.00027397,2]
[425005946,1781409049000,-1342.83,0.00027397,2]
[425005948,1781409049000,-500.0,0.00027397,2]
[425005947,1781409049000,-1345.93,0.00027397,2]
[425005950,1781409049000,-1704.29,0.00027397,2]
[425005952,1781409049000,-778.01,0.00027397,2]
[425005953,1781409049000,-500.0,0.00027397,2]
[425005939,1781409049000,-500.0,0.00027397,2]
[425005958,1781409049000,-693.68,0.00027397,2]
[425005955,1781409049000,-500.0,0.00027397,2]
[425005954,1781409049000,-653.89,0.00027397,2]
[425005956,1781409049000,-554.8,0.00027397,2]
[425005959,1781409049000,-544.59,0.00027397,2]
[425005960,1781409049000,-2250.12,0.00027397,2]
[425005957,1781409049000,-500.0,0.00027397,2]
[425005961,1781409049000,-500.0,0.00027397,2]
[425005951,1781409049000,-500.0,0.00027397,2]
[425005963,1781409049000,-500.0,0.00027397,2]
[425005964,1781409049000,-807.8,0.00027397,2]
[425005962,1781409049000,-500.0,0.00027397,2]
[425006032,1781409050000,-500.0,0.00027397,2]
[425006026,1781409050000,-500.0,0.00027397,2]
[425006037,1781409050000,-500.0,0.00027397,2]
[425006038,1781409050000,-500.0,0.00027397,2]
[425006033,1781409050000,-554.1,0.00027397,2]
[425006027,1781409050000,-500.0,0.00027397,2]
[425006030,1781409050000,-500.0,0.00027397,2]
[425006029,1781409050000,-500.0,0.00027397,2]
[425006028,1781409050000,-1305.33,0.00027397,2]